Cogmind - Beta 17 @@@ ROGUE MODE // 2026.06.23 @ 16:13:49 Player: Vikcy6666 Result: Destroyed by D-53 Grenadier with Mini Grenade Launcher Performance ------------- Evolutions (0) 0 Regions Visited (0) 0 Robots Destroyed (5) 25 Value Destroyed (28) 28 Prototype IDs (0) 0 Alien Tech Used (0) 0 Bonus (0) 0 TOTAL SCORE: 53 Bonus ------- None Cogmind --------- Core Integrity 0/250 Matter 345/350 Energy 83/125 System Corruption 0% Temperature Cool (0) Movement Core (200) Ox3 Location -11/Scrapyard Parts ------- > --- POWER (1) -------- Light Ion Engine > --- PROPULSION (2) --- (None) > --- UTILITY (2) ------ Small Storage Unit Small Matter Pod > --- WEAPON (2) ------- Light Assault Rifle > --- INVENTORY (8) ---- Improved Terrain Scanner Improved Terrain Scanner Seismic Detector Seismic Detector Peak State ------------ > --- POWER ------------ Light Ion Engine > --- PROPULSION ------- Aluminum Leg Aluminum Leg > --- UTILITY ---------- Small Storage Unit Improved Terrain Scanner > --- WEAPON ----------- Medium Laser Small Laser > --- INVENTORY -------- Light Ion Engine Light Ion Engine Light Treads Light Treads Compact Wheel Compact Wheel Light Assault Rifle Mining Laser [Rating: 9] Favorites ----------- Power Light Ion Engine Engine Light Ion Engine Propulsion Aluminum Leg Leg Aluminum Leg Utility Small Storage Unit Device Seismic Detector Storage Small Storage Unit Weapon Medium Laser Energy Gun Medium Laser Ballistic Gun Light Assault Rifle Special Weapon Mining Laser Build | -11 ------- Run | Yrd Slots Evolved . | . Power . | . Propulsion . | . Utility . | . Weapon . | . Parts Attached 13 | 13 Power 3 | 3 Engine 3 | 3 Core . | . Reactor . | . Propulsion 2 | 2 Treads . | . Leg 2 | 2 Wheel . | . Hover . | . Flight . | . Utility 4 | 4 Device 2 | 2 Storage 2 | 2 Processor . | . Hackware . | . Protection . | . Artifact . | . Weapon 4 | 4 Energy Gun 2 | 2 Energy Cannon . | . Ballistic Gun 1 | 1 Ballistic Cannon . | . Launcher . | . Special Weapon 1 | 1 Impact Weapon . | . Slashing Weapon . | . Piercing Weapon . | . Special Melee Weapon . | . Unidentified Prototypes . | . Parts Lost 6 | 6 Power 2 | 2 Propulsion 2 | 2 Utility . | . Weapon 2 | 2 Highest Loss Streak 6 | 6 To Critical Strikes . | . Average Backups 7 | 7 Power 1 | 1 Propulsion . | . Utility 3 | 3 Weapon 1 | 1 Tool/Special . | . Unused Backups 6 | 6 Power . | . Propulsion 4 | 4 Utility 2 | 2 Weapon . | . Tool/Special . | . Average Slot Usage (%) . | . Peak Build Rating 9 | 9 Average Rating 7 | 7 On Entrance . | . Avg Prop Armor Cover (%) . | . Naked Turns . | . Heaviest Build 12 | 12 Greatest Support 20 | 20 Greatest Overweight (x) 2 | 2 Average Overweight (x) . | . Largest Inventory Capacity 8 | 8 Average Capacity 7 | 7 Most Carried 8 | 8 Average Carried 7 | 7 Final Capacity 8 | 8 Final Carried 4 | 4 Class Distribution -------------------- None Dominant Class ---------------- None Resources | -11 ----------- Run | Yrd Matter Collected 330 | 330 Remotely . | . Salvage Created 171 | 171 Parts 13 | 13 Haulers Intercepted . | . Recyclers Shooed . | . Parts Field Recycled . | . Retrieved Matter . | . Parts Self-Destructed . | . Prevented . | . Parts Restored . | . Kills | -11 ------- Run | Yrd Combat Hostiles Destroyed . | . Classes Destroyed 3 | 3 Worker 1 | 1 Tunneler 3 | 3 Recycler 1 | 1 Best Kill Streak 2 | 2 Combat Bots Only . | . Max Kills in Single Turn 1 | 1 Gunslinging . | . Exploded . | . Melee . | . Uniques/NPCs Destroyed . | . Combat | -11 -------- Run | Yrd Hostile Shots Fired 34 | 34 Missed 9 | 9 Hits 25 | 25 Melee 4 | 4 Projectile 21 | 21 AOE 15 | 15 Damage Taken 794 | 794 Core 257 | 257 Absorbed by Shields . | . Core Remaining (%) . | . Volleys Fired 32 | 32 Largest 2 | 2 Hottest 150 | 150 Shots Fired 51 | 51 Gun 39 | 39 Cannon . | . Launcher . | . Special 12 | 12 Kinetic . | . Thermal 51 | 51 Explosive . | . Electromagnetic . | . Robot Hit Streak 4 | 4 Robot Miss Streak 1 | 1 Penetration Max . | . Secondary Targets . | . Shots Hit Robots 18 | 18 Core Hits 6 | 6 Critical Kills . | . Critical Parts Destroyed . | . Critical Strikes 1 | 1 Burn 1 | 1 Melee Attacks . | . Impact . | . Slashing . | . Piercing . | . Sneak Attacks . | . Combat Hostiles . | . Follow-up Attacks . | . Damage Inflicted 229 | 229 Guns 202 | 202 Cannons . | . Explosions . | . Melee . | . Ramming 3 | 3 Kinetic . | . Thermal 226 | 226 Explosive . | . Electromagnetic . | . Impact . | . Slashing . | . Piercing . | . Highest Corruption . | . Average Corruption . | . Corruption Purged . | . Corruption Blocked . | . Overload Shots . | . Overflow Damage . | . Projectiles . | . Explosions . | . Melee . | . Knockbacks . | . Impact . | . Kinetic . | . Secondary . | . Self-Inflicted Damage . | . Shots . | . Rammed . | . Targets Rammed 1 | 1 Kicked 1 | 1 Crushed . | . Highest Temperature 180 | 180 Average Temperature 48 | 48 Received Heat Transfer 80 | 80 Siege Activations . | . Martial Activations . | . Shielding Activations . | . Robots Disrupted . | . Combat Hostiles . | . Robots Corrupted . | . Combat Hostiles . | . Parts Fried . | . Impact Corruptions . | . Robots Melted . | . Combat Hostiles . | . Parts Melted 1 | 1 Heat Transferred 645 | 645 Parts Sabotaged . | . Parts Stolen . | . Parts Stripped . | . Power Chain Reactions . | . Alert | -11 ------- Run | Yrd Maximum Alert Level . | . Low Security (%) 100 | 100 Level 1 . | . Level 2 . | . Level 3 . | . Level 4 . | . Level 5 . | . High Security . | . Max Security . | . Peak Influence 10 | 10 Initial . | . Average . | . Influence Increases 25 | 25 Destroy 0b10 Robot/NC 25 | 25 Influence Decreases 25 | 25 Time Decay 25 | 25 Squads Dispatched . | . Investigation . | . Extermination . | . Reinforcement . | . Assault . | . Garrison . | . Intercept . | . Searches Triggered . | . Construction Impeded . | . Haulers Reinforced . | . Active Scanning Responses . | . Cargo Convoy Interrupts . | . Stealth | -11 --------- Run | Yrd Distress Signals . | . Communications Jammed . | . Distress Signals . | . Times Spotted 39 | 39 Peak Tracking Total 20 | 20 Tactical Retreats 1 | 1 Traps | -11 ------- Run | Yrd Traps Triggered . | . Indirectly . | . Trap Hack Attempts . | . Triggered . | . Disarmed . | . Reprogrammed . | . Reused . | . Traps Extracted . | . Installed . | . Triggered . | . Machines | -11 ---------- Run | Yrd Machines Disabled . | . Max in Single Turn . | . Machines Repaired . | . Machines Dismantled . | . Machines Sabotaged . | . Overloaded Fab Kills . | . Hacking | -11 --------- Run | Yrd Machines Accessed . | . Terminals . | . Fabricators . | . Repair Stations . | . Recycling Units . | . Scanalyzers . | . Garrison Access . | . Total Hacks . | . Successful . | . Failed . | . Catastrophic . | . Database Lockouts . | . Manual . | . Terminals . | . Fabricators . | . Repair Stations . | . Recycling Units . | . Scanalyzers . | . Garrison Access . | . Terminal Hacks . | . Fabricator Hacks . | . Repair Station Hacks . | . Recycling Unit Hacks . | . Scanalyzer . | . Garrison Access Hacks . | . Unauthorized Hacks . | . Terminals . | . Fabricators . | . Repair Stations . | . Recycling Units . | . Scanalyzers . | . Garrison Access . | . Data Cores Recovered . | . Used . | . Hacking Detections . | . Full Trace Events . | . Feedback Events . | . Feedback Blocked . | . Robot Schematics Acquired . | . Robots Built . | . Authchips . | . Time . | . Total Robot Build Rating . | . Part Schematics Acquired . | . Parts Built . | . Authchips . | . Time . | . Total Part Build Rating . | . Part Studies Acquired . | . Parts Repaired . | . Time . | . Parts Recycled . | . Recycled Matter . | . Retrieved Matter . | . Retrieved Components . | . Parts Scanalyzed . | . Part Schematics Acquired . | . Parts Damaged . | . Bothacking | -11 ------------ Run | Yrd Used RIF Installer . | . Robots Hacked . | . Non-combat . | . Combat . | . Robot Hacks Applied . | . Relay Couplers Released . | . Fabnet Peak Effective % . | . Robots Rewired . | . Allies Hacked . | . Hacks Repelled . | . Allies | -11 -------- Run | Yrd Total Allies . | . Largest Group . | . Highest-Rated Group . | . Highest-Rated Ally . | . Total Orders . | . Ally Attacks . | . Total Damage . | . Kills . | . Allies Corrupted . | . Allies Melted . | . Intel | -11 ------- Run | Yrd Active Infowar (turns) 178 | 178 Terrain 25 | 25 Seismic 153 | 153 Robot Analysis Total . | . Derelict Logs Recovered . | . Drone Launches . | . Drone Recoveries . | . Exploration | -11 ------------- Run | Yrd Turns Passed 1277 | 1277 Spaces Moved 289 | 289 Core 21 | 21 Treads . | . Legs 268 | 268 Wheels . | . Hover . | . Flight . | . Fastest Speed 50 | 50 Average Speed 117 | 117 Slowest Speed 150 | 150 Overloaded Moves . | . Propulsion Burnouts . | . Robots Hopped . | . Potential Cave-ins . | . Cave-ins Triggered . | . Exploration Rate (%) 18 | 18 Regions Visited . Branch Regions . Pre-discovered Areas . | . Known Exits Taken . | . Unknown Exits Taken . | . Scrap Searched . | . Spaces Dug 4 | 4 Terrain Destroyed 5 | 5 Melee . | . Projectile 5 | 5 AOE . | . Terrain Rammed . | . Walls Destroyed . | . Machines Disabled . | . Actions | -11 --------- Run | Yrd Total 1152 | 1152 Wait 787 | 787 Move 289 | 289 Hop . | . Pick Up 19 | 19 Fast Attach 2 | 2 Attach 11 | 11 Detach . | . Swap 4 | 4 Drop 7 | 7 Fire 32 | 32 Melee . | . Ram . | . Kick 1 | 1 Crush . | . Escape Stasis . | . Rewire . | . Trap . | . Miscellaneous . | . Route ------- -11/Scrapyard (discovered 1 exit: [*Mat]) History --------- Turn | Location | Event 19 | -11/Scrapyard | Discovered new exit (range 15) 1239 | -11/Scrapyard | Assembled infested the area 1270 | -11/Scrapyard | Core integrity fell below 50% 1278 | -11/Scrapyard | Core integrity fell below 20% 1278 | -11/Scrapyard | Destroyed by D-53 Grenadier with Mini Grenade Launcher Last Messages --------------- 01262_ The unstable cave ceiling collapses. 01263_ Kicked as-99298. 01267_ Lgt. Ion Engine destroyed. 01267_ as-85892 destroyed. 01267_ as-99298 destroyed. 01267_ as-03639 destroyed. 01267_ as-52513 destroyed. 01269_ as-98890 destroyed. 01269_ as-62265 destroyed. 01269_ as-39496 destroyed. 01270_ as-07392 destroyed. 01272_ Med. Laser destroyed. 01273_ Lgt. Ion Engine destroyed. 01273_ as-07899 destroyed. 01274_ Aluminum Leg destroyed. 01275_ as-18098 destroyed. 01275_ as-75909 destroyed. 01275_ as-86746 destroyed. 01277_ The unstable cave ceiling collapses. 01278_ Sml. Laser destroyed. Map ----- +----------------------------------------------------+ | | | | | | | | | | | | | ?????????????????????????????????????????????????? | | ?????????????????????????????????????????????????? | | ?????????????????????????????????????????????????? | | ?????????????????????????????????????????????????? | | ?????????????????????????????????????????????????? | | ??????????????????????#??????????????????????????? | | ?????????????????????? "?# ??????????????????????? | | ???????????????????#?? " ??????????????????????? | | ???????????????????# " ???????????????????????? | | ???????????????????? " ???????????????????????? | | ????????????????????# " ???????????????????????? | | ????????????????????? " ???????????????????????? | | ?????????????????????? ???????????????????????? | | ??????????????????????#a #???????????????????????? | | ??????????????????????# |#########???????????????? | | ?????????????????????##=a #???????????????? | | ????????????????????## #???????????????? | | ????????????????????# a #####???????????? | | ????????????????????## # ##### ###???? | | ????????????????????# @ #???? | | ????????????????????## #??? | | ?????????????????????# ###### ????? | | ?????????????????????# d #??????????? | | ?????????????????????#### # # d #??????????? | | ????????????????????????###### #??????????? | | ?????????????????????????????# #??????????? | | ?????????????????????????????## #######?????? | | ??????????????????????????????### ## #?????? | | ????????????????????????????????# # #?????? | | ??????????????????????########### # #?????? | | ??????????????????????# # # #?????? | | ??????????????????????# # # #?????? | | ??????????????????????# # # #?????? | | ??????????????????????# # # #?????? | | ?????????????????????## # # #?????? | | ?????????????????????# " #?????? | | ?????????????????????## # %# #?????? | | ??????????????????????# ###### # #?????? | | ??????????????????????########### #########?????? | | ?????????????????????????# # # #??????? | | ?????????????????????????# # # ##????#? | | ?????????????????????????# # # #??????? | | ?????????????????????????# #??????? | | ?????????????????????????# # # #??????? | +----------------------------------------------------+ Best States ------------- Heat Dissipation 25 Energy Generation 10 Energy Capacity 125 Matter Stores 350 Matter Capacity 350 Sight Range 16 Terrain Scan Range 16 Terrain Scan Density 10 Evasion (%) 55 Item Schematics ----------------- None Robot Schematics ------------------ None Fabricated ------------ Nothing Repaired ---------- Nothing Studied --------- None Alien Tech Used ----------------- None Achievements -------------- Curiosity Killed The Cat Hunted Challenges ------------ None Game ------ Seed FactoryMetafiberBattery Manual? 0 Play Time 00:18:56 Cumulative 14.4 hours Start 2026.06.23 @ 16:02:52 End 2026.06.23 @ 16:13:49 Sessions 0 Manual Loads 0 Difficulty Rogue Special Mode None Game No. 19 Rogue 19 Adventurer 0 Explorer 0 Win Type - Total 0 Types 0/0/0/0/0/0/0/0/0/0 Lore% 9 Gallery% 15 Achievement% 14 Wizard Run 0 Options --------- Layout 1 ASCII 0 Keyboard 0 Movement Mouse Keybinds 0 Fullscreen 1 Font 24/Smallcaps Map View 50x35 Zoom Use 0% Tactical HUD 1 Map Filters NONE Filters NONE Steam 1 RUN: 7092279c-9f18-4f45-b181-8ccab69f0ca3